Cogmind - Beta 11 X8 @@@ ROGUE MODE // 2021.11.09 @ 16:46:54 Player: Runia Result: Self-destructed Performance ------------- Evolutions (0) 0 Regions Visited (4) 800 Robots Destroyed (39) 195 Value Destroyed (676) 676 Prototype IDs (24) 480 Alien Tech Used (0) 0 Bonus (239) 239 TOTAL SCORE: 2390 Bonus ------- Follower Combat Kills 7 Aligned with FarCom 300 Friendly Fire -68 Cogmind --------- Core Integrity 46/250 Matter 297/300 Energy 250/250 System Corruption 4% Temperature Cool (0) Movement Treading (160) Location -9/Mines Parts ------- > --- POWER (1) -------- Ion Engine > --- PROPULSION (2) --- Improved Treads Improved Treads > --- UTILITY (2) ------ Large Storage Unit > --- WEAPON (2) ------- Autogun Autogun > --- INVENTORY (15) --- Light Nuclear Core Improved Treads Improved Treads High-capacity Storage Unit High-capacity Matter Pod (200) Bomb Drone Bay Assault Rifle Assault Rifle Assault Rifle Light Assault Rifle Autogun Autogun Grenade Launcher Rocket Launcher Peak State ------------ > --- POWER ------------ Ion Engine > --- PROPULSION ------- Improved Treads Improved Treads > --- UTILITY ---------- Large Storage Unit Experimental Sensor Array > --- WEAPON ----------- Autogun Autogun > --- INVENTORY -------- Light Nuclear Core Improved Treads Improved Treads High-capacity Storage Unit High-capacity Matter Pod Bomb Drone Bay Assault Rifle Assault Rifle Assault Rifle Light Assault Rifle Autogun Autogun Grenade Launcher [Rating: 22] Favorites ----------- Power Ion Engine Engine Ion Engine Propulsion Improved Treads Treads Improved Treads Leg Aluminum Leg Utility Large Storage Unit Device Experimental Sensor Array Storage Large Storage Unit Processor Targeting Computer Weapon Autogun Energy Gun Small Laser Ballistic Gun Autogun Launcher Grenade Launcher Build | -11 -10 -10 -10 -9 ------- Run | Scr Mat Min Exi Min Slots Evolved . | . . . . . Power . | . . . . . Propulsion . | . . . . . Utility . | . . . . . Weapon . | . . . . . Parts Attached 22 | 3 13 5 . 1 Power 1 | 1 . . . . Engine 1 | 1 . . . . Core . | . . . . . Reactor . | . . . . . Propulsion 5 | 2 3 . . . Treads 5 | 2 3 . . . Leg . | . . . . . Wheel . | . . . . . Hover . | . . . . . Flight . | . . . . . Utility 3 | . 2 . . 1 Device 1 | . . . . 1 Storage 1 | . 1 . . . Processor 1 | . 1 . . . Hackware . | . . . . . Protection . | . . . . . Artifact . | . . . . . Weapon 13 | . 8 5 . . Energy Gun 4 | . 4 . . . Energy Cannon . | . . . . . Ballistic Gun 4 | . 1 3 . . Ballistic Cannon . | . . . . . Launcher 5 | . 3 2 . . Special Weapon . | . . . . . Impact Weapon . | . . . . . Slashing Weapon . | . . . . . Piercing Weapon . | . . . . . Special Melee Weapon . | . . . . . Unidentified Prototypes 1 | . . . . 1 Parts Lost 1 | . . . . 1 Power . | . . . . . Propulsion . | . . . . . Utility 1 | . . . . 1 Weapon . | . . . . . Highest Loss Streak 1 | . . . . 1 Average Slot Usage (%) 95 | . 89 98 100 100 Engine 14 | . 14 14 14 14 Treads 28 | . 28 28 28 28 Device 1 | . . . . 8 Storage 14 | . 14 14 14 14 Processor 9 | . 5 14 14 5 Energy Gun 8 | . 23 . . . Ballistic Gun 17 | . . 26 28 28 Launcher 1 | . 2 . . . Naked Turns . | . . . . . Heaviest Build 32 | 13 29 31 31 32 Greatest Support 46 | 40 46 46 46 46 Greatest Overweight (x) . | . . . . . Average Overweight (x) . | . . . . . Largest Inventory Capacity 15 | 8 15 15 15 15 Average Capacity 14 | 8 14 15 15 15 Most Carried 15 | 5 15 15 15 15 Average Carried 11 | 3 6 13 14 14 Final Capacity 15 | 8 15 15 15 15 Final Carried 15 | 1 14 15 15 15 Class Distribution -------------------- 100% | Mutant Dominant Class ---------------- Mutant | -10/Materials Mutant | -10/Mines Mutant | -10/Exiles Mutant | -9/Mines Resources | -11 -10 -10 -10 -9 ----------- Run | Scr Mat Min Exi Min Matter Collected 725 | 187 193 151 80 114 Remotely . | . . . . . Salvage Created 723 | . 459 163 10 91 Parts 69 | . 38 24 2 5 Haulers Intercepted 2 | . 2 . . . Recyclers Shooed 1 | . . . . 1 Parts Field Recycled . | . . . . . Retrieved Matter . | . . . . . Parts Self-Destructed . | . . . . . Prevented . | . . . . . Kills | -11 -10 -10 -10 -9 ------- Run | Scr Mat Min Exi Min Combat Hostiles Destroyed 30 | . 14 14 . 2 Guns 15 | . 7 6 . 2 AOE 15 | . 7 8 . . Classes Destroyed 9 | . 7 1 1 . Worker 2 | . 1 1 . . Builder 1 | . 1 . . . Tunneler 1 | . . 1 . . Hauler 2 | . 2 . . . Operator 1 | . 1 . . . Watcher 1 | . 1 . . . Swarmer 20 | . 6 14 . . Grunt 10 | . 8 . . 2 Zionite 1 | . . . 1 . Best Kill Streak 7 | . 5 7 . 2 Combat Bots Only 6 | . 3 6 . 2 Max Kills in Single Turn 4 | . 3 4 1 1 Gunslinging . | . . . . . Exploded 3 | . 2 3 . . Melee . | . . . . . Uniques/NPCs Destroyed . | . . . . . Combat | -11 -10 -10 -10 -9 -------- Run | Scr Mat Min Exi Min Damage Taken 933 | . 326 180 . 427 Core 204 | . 81 33 . 90 Absorbed by Shields . | . . . . . Core Remaining (%) 100 | 100 . . . . Volleys Fired 62 | . 31 17 1 13 Largest 2 | . 2 2 2 2 Hottest 80 | . 80 46 46 46 Shots Fired 105 | . 56 21 2 26 Gun 95 | . 50 17 2 26 Cannon . | . . . . . Launcher 10 | . 6 4 . . Special . | . . . . . Kinetic 45 | . . 17 2 26 Thermal 50 | . 50 . . . Explosive 10 | . 6 4 . . Electromagnetic . | . . . . . Robot Hit Streak 14 | . 12 14 8 13 Robot Miss Streak 4 | . 4 3 . 1 Penetration Max . | . . . . . Secondary Targets 2 | . 1 . . 1 Max Gunslinging Chain 1 | . 1 . . 1 Shots Hit Robots 68 | . 33 12 1 22 Core Hits 58 | . 30 20 1 7 Critical Kills . | . . . . . Critical Parts Destroyed . | . . . . . Critical Strikes . | . . . . . Melee Attacks . | . . . . . Impact . | . . . . . Slashing . | . . . . . Piercing . | . . . . . Sneak Attacks . | . . . . . Combat Hostiles . | . . . . . Follow-up Attacks . | . . . . . Damage Inflicted 1764 | . 892 554 16 302 Guns 840 | . 351 171 16 302 Cannons . | . . . . . Explosions 919 | . 541 378 . . Melee . | . . . . . Ramming 5 | . . 5 . . Kinetic 489 | . . 171 16 302 Thermal 351 | . 351 . . . Explosive 919 | . 541 378 . . Electromagnetic . | . . . . . Impact . | . . . . . Slashing . | . . . . . Piercing . | . . . . . Highest Corruption 4 | . . . . 4 Average Corruption 4 | . . . . 4 Corruption Purged . | . . . . . Overload Shots . | . . . . . Overflow Damage 12 | . 12 . . . Projectiles . | . . . . . Explosions 12 | . 12 . . . Melee . | . . . . . Knockbacks . | . . . . . Impact . | . . . . . Kinetic . | . . . . . Secondary . | . . . . . Self-Inflicted Damage 27 | . 19 8 . . Shots 2 | . 1 1 . . Rammed 2 | . . 2 . . Targets Rammed 2 | . . 2 . . Kicked . | . . . . . Crushed . | . . . . . Highest Temperature 150 | . 150 6 6 35 Average Temperature 38 | . 53 3 4 14 Received Heat Transfer 210 | . 153 . . 57 Siege Activations . | . . . . . Robots Corrupted . | . . . . . Combat Hostiles . | . . . . . Parts Fried . | . . . . . Impact Corruptions . | . . . . . Robots Melted . | . . . . . Combat Hostiles . | . . . . . Parts Melted 3 | . 3 . . . Heat Transferred 775 | . 775 . . . Parts Sabotaged . | . . . . . Parts Stolen . | . . . . . Parts Stripped . | . . . . . Power Chain Reactions . | . . . . . Missiles Intercepted . | . . . . . Alert | -11 -10 -10 -10 -9 ------- Run | Scr Mat Min Exi Min Peak Influence 330 | . 279 330 . 65 Initial 45 | . . 45 . . Average 95 | . 131 87 . 17 Maximum Alert Level 1 | . 1 1 . . Low Security (%) 79 | 100 72 78 . 100 Level 1 20 | . 27 21 . . Level 2 . | . . . . . Level 3 . | . . . . . Level 4 . | . . . . . Level 5 . | . . . . . High Security . | . . . . . Max Security . | . . . . . Squads Dispatched 3 | . 3 . . . Investigation 2 | . 2 . . . Extermination . | . . . . . Reinforcement 1 | . 1 . . . Assault . | . . . . . Garrison . | . . . . . Intercept . | . . . . . Construction Impeded . | . . . . . Haulers Reinforced . | . . . . . Active Scanning Responses . | . . . . . Cargo Convoy Interrupts . | . . . . . Stealth | -11 -10 -10 -10 -9 --------- Run | Scr Mat Min Exi Min Distress Signals . | . . . . . Communications Jammed . | . . . . . Distress Signals . | . . . . . Times Spotted 53 | . 19 15 . 19 Peak Tracking Total 16 | . 4 6 2 16 Tactical Retreats . | . . . . . Traps | -11 -10 -10 -10 -9 ------- Run | Scr Mat Min Exi Min Traps Triggered . | . . . . . Indirectly . | . . . . . Trap Hack Attempts . | . . . . . Triggered . | . . . . . Disarmed . | . . . . . Reprogrammed . | . . . . . Reused . | . . . . . Traps Extracted . | . . . . . Installed . | . . . . . Triggered . | . . . . . Exploded 1 | . . . 1 . Machines | -11 -10 -10 -10 -9 ---------- Run | Scr Mat Min Exi Min Machines Disabled 6 | . 5 . . 1 Max in Single Turn 2 | . 2 . . 1 Machines Sabotaged . | . . . . . Garrisons Compromised . | . . . . . Overloaded Fab Kills . | . . . . . Hacking | -11 -10 -10 -10 -9 --------- Run | Scr Mat Min Exi Min Machines Accessed 11 | . 7 1 2 1 Terminals 6 | . 5 1 . . Fabricators . | . . . . . Repair Stations . | . . . . . Recycling Units 2 | . 2 . . . Scanalyzers . | . . . . . Garrison Access . | . . . . . Total Hacks 25 | . 17 5 2 1 Successful 17 | . 11 3 2 1 Failed 8 | . 6 2 . . Catastrophic 1 | . 1 . . . Database Lockouts . | . . . . . Manual 7 | . 2 4 1 . Terminals 20 | . 15 5 . . Fabricators . | . . . . . Repair Stations . | . . . . . Recycling Units 2 | . 2 . . . Scanalyzers . | . . . . . Garrison Access . | . . . . . Terminal Hacks 15 | . 9 3 2 1 Record 1 | . . . 1 . Robot Analysis 1 | . 1 . . . Open Door 1 | . . . . 1 Branch Access Points 1 | . 1 . . . Alert Level 1 | . . 1 . . Unreport Threat 3 | . 1 2 . . Locate Traps 2 | . 2 . . . Hauler Manifests 1 | . 1 . . . Zone Layout 3 | . 3 . . . EX-Prototype ID Bank 1 | . . . 1 . Fabricator Hacks . | . . . . . Repair Station Hacks . | . . . . . Recycling Unit Hacks . | . . . . . Scanalyzer . | . . . . . Garrison Access Hacks . | . . . . . Unauthorized Hacks 2 | . 2 . . . Terminals . | . . . . . Fabricators . | . . . . . Repair Stations . | . . . . . Recycling Units 2 | . 2 . . . Tunnel 2 | . 2 . . . Scanalyzers . | . . . . . Garrison Access . | . . . . . Data Cores Recovered 1 | . 1 . . . Used . | . . . . . Hacking Detections 6 | . 5 1 . . Full Trace Events . | . . . . . Feedback Events . | . . . . . Feedback Blocked . | . . . . . Robot Schematics Acquired . | . . . . . Robots Built . | . . . . . Authchips . | . . . . . Time . | . . . . . Total Robot Build Rating . | . . . . . Part Schematics Acquired . | . . . . . Parts Built . | . . . . . Authchips . | . . . . . Time . | . . . . . Total Part Build Rating . | . . . . . Parts Repaired . | . . . . . Time . | . . . . . Parts Recycled . | . . . . . Recycled Matter . | . . . . . Retrieved Matter . | . . . . . Retrieved Components . | . . . . . Parts Scanalyzed . | . . . . . Part Schematics Acquired . | . . . . . Parts Damaged . | . . . . . Bothacking | -11 -10 -10 -10 -9 ------------ Run | Scr Mat Min Exi Min Used RIF Installer . | . . . . . Robots Hacked . | . . . . . Non-combat . | . . . . . Combat . | . . . . . Robot Hacks Applied . | . . . . . Relay Couplers Released . | . . . . . Fabnet Peak Effective % . | . . . . . Robots Rewired . | . . . . . Allies Hacked . | . . . . . Hacks Repelled . | . . . . . Allies | -11 -10 -10 -10 -9 -------- Run | Scr Mat Min Exi Min Total Allies 1 | . . 1 . . Largest Group 1 | . . 1 1 . Highest-Rated Group 31 | . . 31 31 . Highest-Rated Ally 31 | . . 31 31 . Total Orders . | . . . . . Ally Attacks 1 | . . 1 . . Total Damage 22 | . . 22 . . Kills 1 | . . 1 . . Allies Corrupted . | . . . . . Allies Melted . | . . . . . Intel | -11 -10 -10 -10 -9 ------- Run | Scr Mat Min Exi Min Robot Analysis Total 1 | . 1 . . . Derelict Logs Recovered 2 | . . 1 . 1 Drone Launches . | . . . . . Drone Recoveries . | . . . . . Exploration | -11 -10 -10 -10 -9 ------------- Run | Scr Mat Min Exi Min Turns Passed 2403 | 6 860 780 443 314 Spaces Moved 1356 | 1 454 454 275 172 Core . | . . . . . Treads 1356 | 1 454 454 275 172 Legs . | . . . . . Wheels . | . . . . . Hover . | . . . . . Flight . | . . . . . Fastest Speed 160 | 160 160 160 160 160 Average Speed 160 | 160 160 160 160 160 Slowest Speed 160 | 160 160 160 160 160 Overloaded Moves . | . . . . . Propulsion Burnouts . | . . . . . Robots Hopped . | . . . . . Cave-ins Triggered . | . . . . . Exploration Rate (%) 60 | 2 91 96 68 45 Regions Visited 4 Branch Regions 3 Pre-discovered Areas 4 | . 2 1 1 . Known Exits Taken 1 | . 1 . . . Unknown Exits Taken 3 | 1 . 1 1 . Scrap Searched 2 | . . 1 . 1 Spaces Dug 9 | . 9 . . . Terrain Destroyed 79 | . 56 23 . . Melee . | . . . . . Projectile . | . . . . . AOE 79 | . 56 23 . . Terrain Rammed . | . . . . . Walls Destroyed . | . . . . . Machines Disabled . | . . . . . Actions | -11 -10 -10 -10 -9 --------- Run | Scr Mat Min Exi Min Total 1491 | 8 528 487 277 191 Wait 20 | . 12 8 . . Move 1352 | . 453 453 274 172 Hop . | . . . . . Pick Up 18 | . 13 2 1 2 Fast Attach 4 | . 4 . . . Attach 4 | 2 . 1 . 1 Detach . | . . . . . Swap 14 | 1 9 4 . . Drop 15 | 5 6 . 1 3 Fire 62 | . 31 17 1 13 Melee . | . . . . . Ram . | . . . . . Kick . | . . . . . Crush 2 | . . 2 . . Escape Stasis . | . . . . . Rewire . | . . . . . Trap . | . . . . . Miscellaneous . | . . . . . Route ------- -11/Scrapyard -10/Materials (discovered 5 exits: [*Mat x3] / *Min x2) -10/Mines (discovered 3 exits: [*Mat x2] / *Exi) -10/Exiles -9/Mines (discovered 1 exit: [*Mat]) History --------- Turn | Location | Event 7 | -11/Scrapyard | Discovered new exit (range 0) 7 | -11/Scrapyard | Entered Materials 187 | -10/Materials | Discovered new exit (range 15) 302 | -10/Materials | Build established: Mutant 308 | -10/Materials | Discovered new exit (range 10) 331 | -10/Materials | Identified exit to Mines 423 | -10/Materials | Discovered new exit (range 13) 616 | -10/Materials | Discovered new exit (range 15) 867 | -10/Materials | Entered Mines 888 | -10/Mines | Discovered new exit (range 5) 1241 | -10/Mines | Found a damaged Exp. Sensor Array with a note attached 1244 | -10/Mines | Found Prototype Device 1310 | -10/Mines | Discovered new exit (range 5) 1377 | -10/Mines | Deemed a non-threat by the Exiles lab entrance 1377 | -10/Mines | Discovered new exit (range 5) 1436 | -10/Mines | Learned location of Storage (-9) 1514 | -10/Mines | Received a Mining Laser from a helpful Derelict 1647 | -10/Mines | Entered Exiles 1647 | -10/Exiles | Accompanied by 1 ally 1686 | -10/Exiles | Met 8R-AWN 1713 | -10/Exiles | Met EX-HEX 1855 | -10/Exiles | Met EX-BIN 1881 | -10/Exiles | Aligned with FarCom system 1883 | -10/Exiles | Given EX-Vault access code 1923 | -10/Exiles | Opened EX-Vault 1958 | -10/Exiles | Warned to stay clear of 0b10 Research branches 1988 | -10/Exiles | Exiles lab attacked by MAIN.C 2020 | -10/Exiles | Learned location of Zion (-6) 2070 | -10/Exiles | Discovered new exit (range 11) 2085 | -10/Exiles | Attacked by the Exiles 2090 | -10/Exiles | Entered Mines 2117 | -9/Mines | Found the Drone Emporium 2125 | -9/Mines | Found Prototype Device 2145 | -9/Mines | Discovered new exit (range 12) 2206 | -9/Mines | A weapon hastily lodged in a ceiling crevice suddenly fell to the ground 2207 | -9/Mines | Received a Rocket Launcher from a helpful Derelict 2219 | -9/Mines | Identified Exp. Sensor Array 2317 | -9/Mines | Core integrity fell below 50% 2372 | -9/Mines | Learned Materials terminal intel 2379 | -9/Mines | Assembled infested the area 2384 | -9/Mines | Assisted by a Guerilla fighting off Assembled 2404 | -9/Mines | Core integrity fell below 20% 2404 | -9/Mines | Self-destructed Last Messages --------------- 02329_ Acquired 31 matter. 02337_ Acquired 7 matter. 02339_ R-06 Scavenger collects Particle Gun. 02342_ R-06 Scavenger collects Aluminum Leg. 02372_ Acquired derelict log, extracted data. Data stored: Materials terminal intel. 02379_ ALERT: Infestation in the mines, dispatching Demolisher response squad. 02384_ A derelict emerges from the shadows: "You need to get out of here! I've been tracking a group of Assembled to figure out where they're coming from, and they're closing on this area, come on!" 02390_ C-30 ARC bursts open, deploying its payload. 02390_ D-53 Grenadier unfolds itself. 02391_ as-45932 destroyed. 02395_ D-53 Grenadier destroyed. 02398_ The unstable cave ceiling collapses. 02398_ D-53 Grenadier destroyed. 02401_ Exp. Sensor Array destroyed. 02401_ System corrupted by crushing effect (+4). 02404_ The unstable cave ceiling collapses. Map ----- +----------------------------------------------------+ | | | | | ???????????????????????????????? | | ???????????????????????????????? | | ????????????########???????????? | | ????????????# #???????????? | | ????????????# """ #???????????? | | ????????????# """ #???????????? | | ????????????# """ #???????????? | | ????????????# "%" #???????????? | | ????????????# " #???????????? | | ????????????### ####???????????? | | ??????????????#*#??????????????# | | ??????????????#[#??????????????# | | ??????????????# #??????????????# | | ??????????????#!#??????####????# | | ??????????????# #?????# ### | | ??????????????# ###????# ! = | | ??????????????# #????# #### | | ??????????????### #?????????#### | | ????????????#???# #????????## | | ??????????? #???# #???????## | | ??????????? ??### ######### | | ?????????? #??# | | ??######## #??# ## | | ?## @ #??# ########## ### | | ?# #??# #????????# ##?? | | ?# a# ###### #????????# #??# | | ?# # #????????# #??# | | ?# %= # #####????????# #??# | | ?## %* # #????????????# #??# | | ?# #????????????# #??# | | ?# #????????????# #??# | | ?## ###??????????# #??# | | ??# # #??????????# #??? | | ??### #???????# #??? | | ????##### a """=! ????# ???? | | ????????## """%]####???# ???? | | ?????????#aa """ #??????? ???? | | ?????????##a % % ##????????????? | | ??????????## ##?????????????? | | ????????????# #??????????????? | | ?????????????# #??????????????? | | ?????????????? #??????????????? | | ?????????????? ??????????????? | | ?????????????? #?????????????? | | ??????????????? #??????????????? | | ???????????????##??????????????? | | ???????????????????????????????? | | ???????????????????????????????? | +----------------------------------------------------+ Best States ------------- Heat Dissipation 25 Energy Generation 10 Energy Capacity 250 Matter Stores 300 Matter Capacity 300 Sight Range 16 Robot Scan Range 20 Terrain Scan Density 10 Evasion (%) 40 Targeting Accuracy 5 Recoil Reduction 2 Item Schematics ----------------- None Robot Schematics ------------------ None Fabricated ------------ Nothing Alien Tech Used ----------------- None Achievements -------------- None Challenges ------------ None Game ------ Seed ArchitectDeuteriumCasing Manual? 0 Play Time 00:11:59 Cumulative 453.3 hours Start 2021.11.09 @ 16:36:34 End 2021.11.09 @ 16:46:54 Sessions 1 Manual Loads 0 Difficulty Rogue Special Mode None Game No. 450 Rogue 450 Adventurer 0 Explorer 0 Win Type - Total 9 Types 8/0/0/1/0/0/0/0/0 Lore% 80 Gallery% 93 Achievement% 70 Wizard Run 0 Options --------- ASCII 0 Keyboard 0 Movement Mouse Keybinds 1 Fullscreen 2 Font 24/Smallcaps Map View 76x50 Tactical HUD 1 Map Filters NONE Filters NONE Steam 1 RUN: 1aedfdef-5a35-4109-b703-a5048fee0451